fUSD/lending_fUSD_20241207
["ID","MTS","AMOUNT","RATE_DAILY","PERIOD"]
[344609301,1733609432224,-501.86,0.00014931,2]
[344609303,1733609432233,-505.02,0.00014931,2]
[344609305,1733609432242,-496.12,0.00014932,2]
[344609307,1733609432250,-494.22,0.00014932,2]
[344609309,1733609432259,-509.24,0.00014932,2]
[344609311,1733609432268,-491.43,0.00014932,2]
[344609313,1733609432278,-509.27,0.00014932,2]
[344609315,1733609432287,-503.07,0.00014932,2]
[344609317,1733609432298,-491.63,0.00014932,2]
[344609319,1733609432309,-494.15,0.00014932,2]
[344609321,1733609432318,-502.55,0.00014932,2]
[344609323,1733609432328,-508.35,0.00014933,2]
[344609325,1733609432337,-504.51,0.00014933,2]
[344609327,1733609432346,-504.45,0.00014933,2]
[344609329,1733609432356,-494.21,0.00014933,2]
[344609331,1733609432365,-490.03,0.00014933,2]
[344609333,1733609432375,-957.53015665,0.00014959,2]
[344609335,1733609432386,-200.0,0.00014964,2]
[344609337,1733609432395,-1265.58522203,0.00014964,2]
[344609339,1733609432407,-688.749995,0.00014964,2]
[344609341,1733609432418,-562.26620255,0.00014964,2]
[344609342,1733609432429,-935.58745139,0.00014964,2]
[344609343,1733609432438,-200.0,0.00014966,2]
[344609344,1733609432447,-2013.30449076,0.00014966,2]
[344609345,1733609432458,-304.0,0.00014966,2]
[344609346,1733609432469,-550.99707701,0.00014966,2]
[344609347,1733609437743,-583.8873032,0.00014966,2]
[344609348,1733609437753,-189.7449451,0.00014967,2]
[344609358,1733609439596,-3262.44392587,0.00014967,2]
[344609359,1733609439607,-718.14761749,0.00014967,2]
[344609360,1733609439616,-200.0,0.00014968,2]
[344609361,1733609439635,-3452.18887097,0.00014968,2]
[344609362,1733609439645,-957.53015665,0.0001497,2]
[344609363,1733609439655,-3452.18887097,0.00014973,2]
[344609364,1733609439665,-718.14761749,0.0001498,2]
[344609365,1733609439675,-957.53015665,0.00014981,2]
[344609366,1733609439684,-957.53015665,0.00014981,2]
[344609367,1733609439694,-200.0,0.00014982,2]
[344609368,1733609439703,-200.0,0.00014982,2]
[344609369,1733609439712,-200.0,0.00014983,2]
[344609370,1733609439722,-200.0,0.00014983,2]
[344609371,1733609439731,-200.0,0.00014984,2]
[344609372,1733609439741,-200.0,0.00014985,2]
[344609373,1733609439751,-200.0,0.00014985,2]
[344609374,1733609439760,-718.14761749,0.00014987,2]
[344609375,1733609439770,-200.0,0.00014988,2]
[344609376,1733609439779,-200.0,0.00014988,2]
[344609377,1733609439789,-718.14761749,0.00014988,2]
[344609378,1733609439799,-200.0,0.0001499,2]
[344609379,1733609439808,-200.0,0.0001499,2]
[344609380,1733609439817,-718.14761749,0.00014991,2]
[344609381,1733609439827,-718.14761749,0.00014992,2]
[344609382,1733609439836,-200.0,0.00014994,2]
[344609383,1733609439845,-3452.18887097,0.00014995,2]
[344609384,1733609439855,-200.0,0.00014997,2]
[344609385,1733609439866,-200.0,0.00014997,2]
[344609386,1733609439877,-957.53015665,0.00014999,2]
[344609387,1733609439887,-957.53015665,0.00014999,2]
[344609388,1733609439896,-200.0,0.00014999,2]
[344609389,1733609439906,-1071.69132945,0.00015012,2]
[344609390,1733609440484,-905.2599921,0.00015012,2]
[344609557,1733609443547,-23.04867845,0.00015012,2]
[344609558,1733609443557,-1155.05,0.000151,2]
[344609559,1733609443567,-800.0,0.00015133,2]
[344609560,1733609443576,-800.0,0.00015133,2]
[344609561,1733609443586,-144.69253869,0.00015133,2]
[344609562,1733609443600,-548.0932,0.00015133,2]
[344609563,1733609443612,-107.21426131,0.00015133,2]
[344609564,1733609443622,-800.0,0.00015133,2]
[344609565,1733609443631,-242.15537469,0.00015133,2]
[344609566,1733609443643,-359.59355034,0.00015133,2]
[344609567,1733609443652,-579.68,0.00015984,2]
[344609568,1733609443661,-161.24,0.00016314,2]
[344609569,1733609443671,-150.0,0.00016652,2]
[344609570,1733609443681,-161.41,0.00016661,2]
[344609571,1733609443690,-164.41,0.00016712,2]
[344609572,1733609443699,-151.0,0.00016874,2]
[344609573,1733609443708,-2000.0,0.00017426,2]
[344609574,1733609443718,-500.0,0.00017426,2]
[344609575,1733609443727,-401.39376566,0.00017426,2]
[344609576,1733609443739,-98.60623434,0.00017426,2]
[344609577,1733609443748,-200.0,0.00017426,2]
[344609578,1733609443757,-1532.85,0.0001808,30]
[344609579,1733609443767,-311.09335066,0.00018248,2]
[344609580,1733609443778,-268.58664934,0.00018248,2]
[344609581,1733609443788,-1000.0,0.00018339,2]
[344609582,1733609443797,-150.0,0.00018383,2]
[344609583,1733609443807,-4403.33,0.00018415,7]
[344609584,1733609443816,-4403.33,0.00018415,7]
[344609585,1733609443826,-4403.33,0.00018415,7]
[344609586,1733609443835,-4403.33,0.00018415,7]
[344609587,1733609443845,-4403.33,0.00018689,7]
[344609588,1733609443854,-4403.33,0.00018689,7]
[344609589,1733609443870,-250.0,0.00018704,2]
[344609590,1733609443879,-4403.33,0.00018962,7]
[344609591,1733609443888,-4403.33,0.00018962,7]
[344609592,1733609443898,-299.341,0.00019,2]
[344609593,1733609443908,-4000.0,0.00019178,2]
[344609594,1733609443917,-4403.33,0.00019235,7]
[344609595,1733609443926,-4403.33,0.00019235,7]
[344609596,1733609443937,-161.41,0.00019438,2]
[344609597,1733609443946,-4403.33,0.00019508,7]
[344609598,1733609443955,-4403.33,0.00019508,7]
[344609599,1733609443965,-169.71,0.00019568,2]
[344609600,1733609443974,-23267.82214467,0.000196,2]
[344609601,1733609443983,-7926.67266091,0.000196,2]
[344609602,1733609444006,-199.902,0.000196,2]
[344609603,1733609444017,-4313.23811638,0.000196,2]
[344609604,1733609444027,-554.616,0.00019727,2]
[344609605,1733609444036,-4403.33,0.00019781,7]
[344609606,1733609444045,-4403.33,0.00019781,7]
[344609607,1733609444055,-60005.56522087,0.000198,2]
[344609608,1733609444064,-3000.0,0.000198,2]
[344609609,1733609444074,-2000.0,0.00019839,2]
[344609610,1733609444084,-304.0,0.00019863,2]
[344609611,1733609444093,-302.32511479,0.00019899,2]
[344609612,1733609444102,-302.32511476,0.00019899,2]
[344609613,1733609444113,-302.32511476,0.00019899,2]
[344609614,1733609444122,-302.32511476,0.00019899,2]
[344609615,1733609444131,-302.32511476,0.00019899,2]
[344609616,1733609444141,-220.0,0.000199,2]
[344609617,1733609444150,-5100.0,0.000199,5]
[344609618,1733609444164,-5100.0,0.000199,10]
[344609620,1733609444175,-5100.0,0.000199,12]
[344609622,1733609444185,-5100.0,0.000199,13]
[344609624,1733609444195,-5100.0,0.000199,14]
[344609625,1733609444205,-597.31666882,0.000199,2]
[344609626,1733609444216,-4277.51863595,0.000199,2]
[344609628,1733609444231,-125.16469523,0.000199,2]
[344609629,1733609444241,-1156.61391288,0.000199,15]
[344609630,1733609444256,-3943.38608712,0.000199,15]
[344609631,1733609444265,-5100.0,0.000199,24]
[344609632,1733609444274,-5100.0,0.000199,25]
[344609633,1733609444283,-5100.0,0.000199,26]
[344609634,1733609444293,-5100.0,0.000199,27]
[344609635,1733609444307,-395.1459944,0.00019973,2]
[344609636,1733609444317,-150.0,0.00019998,2]
[344609637,1733609444327,-150.0,0.00019998,2]
[344609638,1733609444337,-150.0,0.00019998,2]
[344609639,1733609444346,-150.0,0.00019998,2]
[344609640,1733609444356,-150.0,0.00019998,2]
[344609641,1733609444367,-150.0,0.00019998,3]
[344609642,1733609444377,-150.0,0.00019998,3]
[344609643,1733609444387,-150.0,0.00019998,3]
[344609644,1733609444397,-184.95122214,0.00019998,3]
[344609645,1733609444405,-2000.0,0.00019999,2]
[344609646,1733609444415,-205.34797138,0.00019999,2]
[344609647,1733609444424,-500.0,0.00019999,2]
[344609648,1733609444433,-500.0,0.00019999,2]
[344609649,1733609444442,-500.0,0.00019999,2]
[344609650,1733609444451,-500.0,0.00019999,2]
[344609651,1733609444460,-358.09,0.00019999,2]
[344609652,1733609444469,-500.0,0.00019999,2]
[344609653,1733609444479,-500.0,0.00019999,2]
[344609654,1733609444488,-151.16,0.00019999,2]
[344609655,1733609444497,-500.0,0.00019999,2]
[344609656,1733609444506,-500.0,0.00019999,2]
[344609657,1733609444515,-434.59555614,0.00019999,2]
[344609658,1733609444524,-500.0,0.00019999,2]
[344609659,1733609444533,-348.64444386,0.00019999,2]
[344609660,1733609444542,-500.0,0.00019999,2]
[344609661,1733609444552,-491.0950006,0.00019999,2]
[344609662,1733609444561,-7500.0,0.00019999,2]
[344609663,1733609444571,-7500.0,0.00019999,2]
[344609664,1733609444580,-7500.0,0.00019999,2]
[344609665,1733609444589,-7500.0,0.00019999,2]
[344609666,1733609444598,-7500.0,0.00019999,2]
[344609667,1733609444607,-7500.0,0.00019999,2]
[344609668,1733609444617,-2641.38,0.00019999,2]
[344609669,1733609444626,-195.95577622,0.00019999,2]
[344609670,1733609444635,-1915.007,0.00019999,2]
[344609671,1733609444644,-14214.24094816,0.0002,3]
[344609672,1733609444863,-2996.72927843,0.0002,3]
[344609673,1733609444874,-12481.17119886,0.0002,3]
[344609674,1733609444885,-251.499999,0.0002,3]
[344609677,1733609445649,-146214.78659808,0.0002,3]
[344609678,1733609445658,-3898.20224826,0.0002,3]
[344609679,1733609445667,-559.0,0.0002,2]
[344609680,1733609445676,-414823.19002449,0.0002,2]
[344609681,1733609445687,-74201.75084096,0.0002,2]
[344609682,1733609445750,-1255.64999755,0.0002,2]
[344609683,1733609445857,-8014.99999998,0.0002,2]
[344609684,1733609445960,-15157.2,0.0002,2]
[344609685,1733609445972,-28427.360531,0.0002,2]
[344609686,1733609445983,-88474.108647,0.0002,2]
[344609687,1733609446148,-621.34342673,0.0002,2]
[344609690,1733609509547,9000.0,0.00021,120]
[344609691,1733609599557,-5000000.0,0.00027656,30]
[344609692,1733609753236,1128.31,0.000211,120]
[344609693,1733609771015,1128.3,0.000211,120]
[344609694,1733610155217,2500.0,0.00019998,120]
[344609695,1733610155485,2514.43729287,0.00019998,120]
[344609696,1733610308664,3323205.98750868,0.0001,2]
[344609703,1733610385728,1002.32578117,0.000211,120]
[344609704,1733610402767,1684.47,0.0001,10]
[344609738,1733610610850,-400.0,9.8e-05,3]
[344609739,1733610610875,-800.0,9.9e-05,3]
[344609740,1733610610898,-300.0,9.999e-05,2]
[344609741,1733610610919,-150.0,9.999e-05,2]
[344609742,1733610610941,-1957914.52522744,0.0001,2]
[344609743,1733610610963,-20024.89110787,0.0001,2]
[344609744,1733610610986,-1300.0,0.0001,3]
[344609745,1733610611007,-1184.55982473,0.0001,2]
[344609746,1733610611028,-4740.25308634,0.0001,2]
[344609747,1733610611048,-240.19738888,0.0001,2]
[344609760,1733610631806,-150.0,0.00012126,2]
[344609761,1733610631815,-218.74135047,0.00012399,2]
[344609762,1733610631824,-218.74135044,0.00012399,2]
[344609763,1733610631834,-218.74135044,0.00012399,2]
[344609764,1733610631847,-533.69969365,0.00012399,2]
[344609765,1733610631858,-168.53280319,0.00012399,2]
[344609766,1733610631867,-432.30066164,0.00012399,2]
[344609767,1733610631887,-269.93183517,0.00012399,2]
[344609768,1733610631896,-702.23249681,0.00012399,2]
[344609769,1733610631905,-450.0,0.00013,2]
[344609770,1733610631915,-702.23249681,0.00013233,2]
[344609771,1733610631924,-218.74135044,0.00013233,2]
[344609772,1733610631933,-7500.0,0.00013698,2]
[344609773,1733610631943,-7500.0,0.00013698,2]
[344609774,1733610631952,-7500.0,0.00013698,2]
[344609775,1733610631961,-7500.0,0.00013698,2]
[344609776,1733610631970,-7500.0,0.00013698,2]
[344609777,1733610631980,-7500.0,0.00013698,2]
[344609778,1733610631989,-7500.0,0.00013698,2]
[344609779,1733610631998,-7500.0,0.00013698,2]
[344609780,1733610632007,-1745.71182077,0.00014052,2]
[344609781,1733610632018,-6140.0,0.00014052,2]
[344609782,1733610632029,-9166.73808123,0.00014052,2]
[344609783,1733610632039,-6918.26191877,0.00014052,2]
[344609784,1733610632050,-700.0,0.00014052,2]
[344609785,1733610632061,-4130.39226323,0.00014052,2]
[344609786,1733610632071,-1749.60773677,0.00014068,2]
[344609787,1733610632082,-1360.0,0.00014068,2]
[344609788,1733610632098,-319.5,0.00014068,2]
[344609802,1733610637906,-2194.31815138,0.00014068,2]
[344609803,1733610637915,-16806.74583143,0.00014228,2]
[344609804,1733610637926,-245.70407057,0.00014228,2]
[344609805,1733610637935,-11748.654182,0.00014228,2]
[344609806,1733610637944,-702.23249681,0.00014344,2]
[344609807,1733610637953,-218.74135044,0.00014344,2]
[344609808,1733610637962,-17052.449902,0.00014404,2]
[344609809,1733610637970,-11748.654182,0.00014404,2]
[344609810,1733610637979,-3761.0,0.00014519,2]
[344609811,1733610637988,-3529.0,0.00014519,2]
[344609812,1733610637997,-17052.449902,0.00014579,2]
[344609813,1733610638006,-11748.654182,0.00014579,2]
[344609814,1733610638018,-169.71,0.00014611,2]
[344609815,1733610638027,-17052.449902,0.00014755,2]
[344609816,1733610638036,-11748.654182,0.00014755,2]
[344609817,1733610638046,-7500.0,0.00014879,2]
[344609818,1733610638055,-34355.14564819,0.0001488,2]
[344609819,1733610638068,-2466.90673816,0.0001488,2]
[344609820,1733610638080,-660.69050794,0.0001488,2]
[344609821,1733610638092,-3316.80811482,0.0001488,2]
[344609826,1733610639813,-30198.53439211,0.0001488,2]
[344609827,1733610639824,-200.0,0.00014955,2]
[344609828,1733610639834,-200.0,0.00014957,2]
[344609829,1733610639843,-1984.95120884,0.00014958,2]
[344609830,1733610639853,-1984.95120884,0.00014958,2]
[344609831,1733610639863,-1116.53505497,0.00014959,2]
[344609832,1733610639872,-538.61071312,0.00014959,2]
[344609833,1733610639885,-538.61071312,0.00014959,2]
[344609834,1733610639895,-403.95803484,0.00014959,2]
[344609835,1733610639904,-200.0,0.0001496,2]
[344609836,1733610639913,-200.0,0.0001496,2]
[344609837,1733610639922,-403.95803484,0.00014961,2]
[344609838,1733610639931,-2646.60161179,0.00014961,2]
[344609839,1733610639940,-200.0,0.00014961,2]
[344609840,1733610639950,-364.34525131,0.00014962,2]
[344609841,1733610639959,-200.0,0.00014962,2]
[344609842,1733610639968,-2646.60161179,0.00014962,2]
[344609843,1733610639978,-227.22639459,0.00014962,2]
[344609844,1733610639987,-273.25893849,0.00014962,2]
[344609845,1733610639997,-2646.60161179,0.00014963,2]
[344609846,1733610640006,-227.22639459,0.00014963,2]
[344609847,1733610640016,-200.0,0.00014963,2]
[344609848,1733610640026,-302.96852613,0.00014963,2]
[344609849,1733610640035,-227.22639459,0.00014964,2]
[344609850,1733610640044,-628.05096842,0.00014964,2]
[344609851,1733610640053,-403.95803484,0.00014964,2]
[344609852,1733610640062,-2646.60161179,0.00014965,2]
[344609853,1733610640072,-471.03822632,0.00014965,2]
[344609854,1733610640081,-200.0,0.00014966,2]
[344609855,1733610640090,-200.0,0.00014966,2]
[344609856,1733610640100,-628.05096842,0.00014967,2]
[344609857,1733610640109,-200.0,0.00014968,2]
[344609858,1733610640119,-200.0,0.00014968,2]
[344609859,1733610640128,-273.25893849,0.00014968,2]
[344609860,1733610640142,-302.96852613,0.00014968,2]
[344609861,1733610640152,-471.03822632,0.00014968,2]
[344609862,1733610640161,-538.61071312,0.00014969,2]
[344609863,1733610640171,-200.0,0.00014969,2]
[344609864,1733610640180,-302.96852613,0.0001497,2]
[344609865,1733610640189,-1488.71340663,0.0001497,2]
[344609866,1733610640199,-200.0,0.0001497,2]
[344609867,1733610640209,-273.25893849,0.0001497,2]
[344609868,1733610640218,-837.40129123,0.00014971,2]
[344609869,1733610640227,-628.05096842,0.00014971,2]
[344609870,1733610640237,-200.0,0.00014972,2]
[344609871,1733610640246,-273.25893849,0.00014973,2]
[344609872,1733610640255,-200.0,0.00014973,2]
[344609873,1733610640265,-200.0,0.00014973,2]
[344609874,1733610640274,-302.96852613,0.00014974,2]
[344609875,1733610640283,-628.05096842,0.00014974,2]
[344609876,1733610640293,-200.0,0.00014974,2]
[344609877,1733610640303,-837.40129123,0.00014975,2]
[344609878,1733610640312,-403.95803484,0.00014975,2]
[344609879,1733610640322,-204.94420386,0.00014975,2]
[344609880,1733610640332,-200.0,0.00014975,2]
[344609881,1733610640342,-200.0,0.00014976,2]
[344609882,1733610640351,-1488.71340663,0.00014976,2]
[344609883,1733610640361,-1488.71340663,0.00014976,2]
[344609884,1733610640371,-837.40129123,0.00014976,2]
[344609885,1733610640382,-273.25893849,0.00014977,2]
[344609886,1733610640392,-200.0,0.00014977,2]
[344609887,1733610640401,-200.0,0.00014978,2]
[344609888,1733610640411,-1488.71340663,0.00014978,2]
[344609889,1733610640420,-200.0,0.00014979,2]
[344609890,1733610640429,-302.96852613,0.00014979,2]
[344609891,1733610640439,-200.0,0.00014979,2]
[344609892,1733610640448,-471.03822632,0.0001498,2]
[344609893,1733610640457,-1116.53505497,0.0001498,2]
[344609894,1733610640466,-364.34525131,0.0001498,2]
[344609895,1733610640475,-200.0,0.00014981,2]
[344609896,1733610640485,-200.0,0.00014981,2]
[344609897,1733610640494,-1984.95120884,0.00014982,2]
[344609898,1733610640503,-364.34525131,0.00014982,2]
[344609899,1733610640513,-471.03822632,0.00014983,2]
[344609900,1733610640522,-200.0,0.00014983,2]
[344609901,1733610640531,-837.40129123,0.00014983,2]
[344609902,1733610640541,-204.94420386,0.00014983,2]
[344609903,1733610640551,-200.0,0.00014984,2]
[344609904,1733610640560,-403.95803484,0.00014984,2]
[344609905,1733610640570,-471.03822632,0.00014984,2]
[344609906,1733610640579,-227.22639459,0.00014984,2]
[344609907,1733610640589,-538.61071312,0.00014984,2]
[344609908,1733610640599,-273.25893849,0.00014984,2]
[344609909,1733610640608,-302.96852613,0.00014984,2]
[344609910,1733610640617,-364.34525131,0.00014985,2]
[344609911,1733610640626,-1488.71340663,0.00014986,2]
[344609912,1733610640639,-200.0,0.00014986,2]
[344609913,1733610640648,-200.0,0.00014986,2]
[344609914,1733610640842,-204.94420386,0.00014986,2]
[344609915,1733610640852,-1984.95120884,0.00014987,2]
[344609916,1733610640862,-364.34525131,0.00014987,2]
[344609917,1733610640871,-837.40129123,0.00014987,2]
[344609918,1733610640881,-2646.60161179,0.00014988,2]
[344609919,1733610640891,-204.94420386,0.00014989,2]
[344609920,1733610640901,-200.0,0.00014989,2]
[344609921,1733610640910,-1488.71340663,0.00014989,2]
[344609922,1733610640919,-204.94420386,0.00014989,2]
[344609923,1733610640929,-538.61071312,0.00014989,2]
[344609924,1733610640939,-471.03822632,0.00014991,2]
[344609925,1733610640950,-1116.53505497,0.00014993,2]
[344609926,1733610640960,-1116.53505497,0.00014993,2]
[344609927,1733610640969,-628.05096842,0.00014993,2]
[344609928,1733610640979,-403.95803484,0.00014994,2]
[344609929,1733610640988,-200.0,0.00014994,2]
[344609930,1733610640997,-204.94420386,0.00014994,2]
[344609931,1733610641007,-1984.95120884,0.00014995,2]
[344609932,1733610641016,-200.0,0.00014995,2]
[344609933,1733610641025,-227.22639459,0.00014995,2]
[344609934,1733610641034,-1116.53505497,0.00014995,2]
[344609935,1733610641043,-538.61071312,0.00014995,2]
[344609936,1733610641052,-1984.95120884,0.00014995,2]
[344609937,1733610641062,-200.0,0.00014995,2]
[344609938,1733610641071,-628.05096842,0.00014996,2]
[344609939,1733610641081,-200.0,0.00014996,2]
[344609940,1733610641090,-837.40129123,0.00014997,2]
[344609941,1733610641107,-200.0,0.00014998,2]
[344609942,1733610641118,-227.22639459,0.00014998,2]
[344609943,1733610641127,-364.34525131,0.00014998,2]
[344609944,1733610641139,-1116.53505497,0.00014999,2]
[344609945,1733610641148,-200.0,0.00014999,2]
[344609946,1733610641158,-2646.60161179,0.00014999,2]
[344609947,1733610641167,-3249.0,0.00015,2]
[344609948,1733610641176,-500.0,0.00015,2]
[344609949,1733610641186,-4276.6,0.00015,2]
[344609950,1733610641196,-500.0,0.00015068,2]
[344609951,1733610641206,-156.51598203,0.00015068,2]
[344609952,1733610641215,-500.0,0.00015068,2]
[344609953,1733610641225,-500.0,0.00015068,2]
[344609954,1733610641234,-500.0,0.00015068,2]
[344609955,1733610641243,-500.0,0.00015068,2]
[344609956,1733610641252,-500.0,0.00015068,2]
[344609957,1733610641262,-500.0,0.00015068,2]
[344609958,1733610641271,-500.0,0.00015068,2]
[344609959,1733610641280,-500.0,0.00015068,2]
[344609960,1733610641290,-500.0,0.00015068,2]
[344609961,1733610641299,-500.0,0.00015068,2]
[344609962,1733610641308,-500.0,0.00015068,2]
[344609963,1733610641317,-500.0,0.00015068,2]
[344609964,1733610641326,-500.0,0.00015068,2]
[344609965,1733610641336,-500.0,0.00015068,2]
[344609966,1733610641345,-500.0,0.00015068,2]
[344609967,1733610641354,-500.0,0.00015068,2]
[344609968,1733610641363,-500.0,0.00015068,2]
[344609969,1733610641372,-500.0,0.00015068,2]
[344609970,1733610641382,-500.0,0.00015068,2]
[344609971,1733610641392,-500.0,0.00015068,2]
[344609972,1733610641402,-500.0,0.00015068,2]
[344609973,1733610641411,-500.0,0.00015068,2]
[344609974,1733610641420,-500.0,0.00015068,2]
[344609975,1733610641430,-153.06810101,0.00015068,2]
[344609976,1733610641439,-500.0,0.00015068,2]
[344609977,1733610641448,-500.0,0.00015068,2]
[344609978,1733610641459,-500.0,0.00015068,2]
[344609979,1733610641469,-500.0,0.00015068,2]
[344609980,1733610641479,-346.30104686,0.00015068,2]
[344609981,1733610641487,-837.51,0.00015068,2]
[344609982,1733610641497,-837.51,0.00015068,2]
[344609983,1733610641507,-837.51,0.00015068,2]
[344609984,1733610641516,-837.51,0.00015068,2]
[344609985,1733610641525,-837.51,0.00015068,2]
[344609986,1733610641535,-837.51,0.00015068,2]
[344609987,1733610641544,-837.51,0.00015068,2]
[344609988,1733610641553,-837.51,0.00015068,2]
[344609989,1733610641563,-532.8,0.00015068,2]
[344609990,1733610641572,-500.0,0.00015068,2]
[344609991,1733610641581,-575.90134389,0.00015068,2]
[344609992,1733610641591,-1039.55,0.000151,2]
[344609993,1733610641600,-702.23249681,0.00015456,2]
[344609994,1733610641609,-218.74135044,0.00015456,2]
[344609995,1733610641619,-521.71,0.00015634,2]
[344609996,1733610641628,-1821.67,0.00015638,2]
[344609997,1733610641639,-702.23249681,0.00016567,2]
[344609998,1733610641648,-218.74135044,0.00016567,2]
[344609999,1733610641657,-550.0,0.00017,2]
[344610000,1733610641666,-1135.99612837,0.00017298,2]
[344610001,1733610641675,-1503.9,0.00017447,2]
[344610002,1733610641687,-151.0,0.00017563,2]
[344610003,1733610641698,-150.0,0.00017669,2]
[344610004,1733610641707,-1000.0,0.0001767,2]
[344610005,1733610641717,-1784.88,0.00017673,2]
[344610006,1733610641727,-702.23249681,0.00017678,2]
[344610007,1733610641736,-218.74135044,0.00017678,2]
[344610008,1733610641746,-443.692,0.00017702,2]
[344610009,1733610641756,-1852.42,0.00017714,2]
[344610010,1733610641765,-4534.98,0.00017721,2]
[344610011,1733610641775,-500.0,0.00017733,2]
[344610012,1733610641784,-837.51,0.00017733,2]
[344610013,1733610641794,-250.0,0.00017734,2]
[344610014,1733610641804,-30702.5,0.00017734,2]
[344610015,1733610641814,-1163.08,0.0001777,2]
[344610016,1733610641823,-257.55,0.0001779,2]
[344610017,1733610641833,-521.71,0.00017898,2]
[344610018,1733610641842,-1456.2,0.00017904,30]
[344610019,1733610641852,-310.77,0.00018155,2]
[344610020,1733610641861,-4036.38,0.00018415,7]
[344610021,1733610641870,-4036.38,0.00018415,7]
[344610022,1733610641880,-4036.38,0.00018415,7]
[344610023,1733610641891,-4036.38,0.00018415,7]
[344610024,1733610641900,-4036.38,0.00018689,7]
[344610025,1733610641909,-4036.38,0.00018689,7]
[344610026,1733610641918,-702.23249681,0.00018789,2]
[344610027,1733610641927,-218.74135044,0.00018789,2]
[344610028,1733610641937,-4036.38,0.00018962,7]
[344610029,1733610641946,-4036.38,0.00018962,7]
[344610030,1733610641956,-600.0,0.00019,2]
[344610031,1733610641965,-298.994,0.00019,2]
[344610032,1733610641974,-4000.0,0.00019178,2]
[344610033,1733610641984,-1700.0,0.000192,7]
[344610034,1733610641993,-4036.38,0.00019235,7]
[344610035,1733610642003,-4036.38,0.00019235,7]
[344610036,1733610642014,-500.0,0.00019299,2]
[344610037,1733610642023,-500.0,0.00019299,2]
[344610038,1733610642032,-1666.66,0.00019299,2]
[344610039,1733610642041,-500.0,0.00019299,2]
[344610040,1733610642051,-500.0,0.00019299,2]
[344610041,1733610642060,-500.0,0.00019299,2]
[344610042,1733610642069,-500.0,0.00019299,2]
[344610043,1733610642078,-509.15,0.00019299,2]
[344610044,1733610642087,-500.0,0.00019299,2]
[344610045,1733610642096,-500.0,0.00019299,2]
[344610046,1733610642106,-500.0,0.00019299,2]
[344610047,1733610642116,-478.02148261,0.00019299,2]
[344610048,1733610642126,-500.0,0.00019299,2]
[344610049,1733610642135,-500.0,0.00019299,2]
[344610050,1733610642145,-500.0,0.00019299,2]
[344610051,1733610642155,-500.0,0.00019299,2]
[344610052,1733610642164,-500.0,0.00019299,2]
[344610053,1733610642173,-500.0,0.00019299,2]
[344610054,1733610642183,-500.0,0.00019299,2]
[344610055,1733610642192,-500.0,0.00019299,2]
[344610056,1733610642201,-500.0,0.00019299,2]
[344610057,1733610642212,-2100.0,0.000193,7]
[344610058,1733610642221,-324.55963199,0.00019347,2]
[344610059,1733610642230,-500.0,0.00019347,2]
[344610060,1733610642239,-500.0,0.00019347,2]
[344610061,1733610642248,-500.0,0.00019347,2]
[344610062,1733610642257,-400.0,0.000194,7]
[344610063,1733610642266,-400.0,0.000195,7]
[344610064,1733610642275,-4036.38,0.00019508,7]
[344610065,1733610642284,-4036.38,0.00019508,7]
[344610066,1733610642294,-7926.6736609,0.000196,2]
[344610067,1733610642303,-5791.36089348,0.000196,2]
[344610068,1733610642313,-2326.78231447,0.000196,2]
[344610069,1733610642323,-400.0,0.000196,7]
[344610070,1733610642333,-400.0,0.000197,7]
[344610071,1733610642343,-152.0,0.00019761,3]